bitfinex/quotes_ETHUSD_20250925
["timestamp","ask_amount","ask_price","bid_price","bid_amount"]
[1758781971112,0.6743,4020.9,4020.8,0.002]
[1758781971279,0.69921715,4020.9,4020.8,0.002]
[1758781971483,3.18622254,4020.9,4020.8,0.002]
[1758781971684,7.45430539,4020.9,4020.8,0.002]
[1758781971883,3.16130539,4020.9,4020.8,0.002]
[1758781972234,3.18622254,4020.9,4020.8,0.002]
[1758781973081,6.97822254,4020.9,4020.8,0.002]
[1758781973282,6.95330539,4020.9,4020.8,0.002]
[1758781976403,7.34348751,4020.9,4020.8,0.002]
[1758781977082,13.70948751,4020.9,4020.8,0.002]
[1758781977491,7.34348751,4020.9,4020.8,0.002]
[1758781977679,13.70948751,4020.9,4020.8,0.002]
[1758781979916,13.31930539,4020.9,4020.8,0.002]
[1758781982009,3.27931469,4020.4,4020.3,0.002]
[1758781982315,41.90551389,4020.4,4020.3,0.002]
[1758781982507,42.58331389,4020.4,4020.3,0.002]
[1758781984024,44.65631389,4020.4,4020.3,0.002]
[1758781985621,45.0465499,4020.4,4020.3,0.002]
[1758781987115,38.6805499,4020.4,4020.3,0.002]
[1758781987428,13.0345507,4020.4,4020.3,0.002]
[1758781987818,5.8775507,4020.4,4020.3,0.002]
[1758781988023,4.68223601,4020.4,4020.3,0.002]
[1758781988221,4.68223601,4020.4,4020.3,0.6783]
[1758781988421,0.39023601,4020.4,4020.3,3.16567656]
[1758781990512,2.073,4021.6,4020.7,2.4871174]
[1758781990709,3.0,4021.4,4020.8,0.6838]
[1758781990911,4.292,4021.3,4020.8,3.17083049]
[1758781991103,4.292,4021.3,4020.8,0.6838]
[1758781991416,4.292,4021.3,4020.4,2.48725462]
[1758781991417,4.292,4021.3,4020.9,0.6838]
[1758781991616,4.292,4021.3,4021.0,0.6838]
[1758781991823,4.292,4021.3,4021.1,0.6838]
[1758781992432,0.001,4021.7,4021.0,2.48692658]
[1758781992632,0.001,4021.7,4021.3,2.4867105]
[1758781992834,31.3331992,4021.6,4020.7,0.4377]
[1758781993044,2.4869665,4021.0,4020.1,0.4577]
[1758781993222,4.31691715,4020.9,4020.1,0.4577]
[1758781993539,3.0,4020.8,4020.1,0.02]
[1758781993743,34.3331992,4020.6,4020.1,0.02]
[1758781993929,4.31591715,4020.5,4020.1,0.02]
[1758781994127,2.48731469,4020.4,4020.1,0.02]
[1758781994528,3.60689864,4020.4,4020.1,0.02]
[1758781995311,3.13199864,4020.4,4020.1,0.02]
[1758781995516,2.90239864,4020.4,4020.1,0.02]
[1758781995913,0.3901668,4020.4,4020.1,0.02]
[1758781996113,4.6811668,4020.4,4020.3,0.6858]
[1758781996552,0.3901668,4020.4,4020.3,3.17317656]
[1758781996715,0.3901668,4020.4,4020.3,0.6858]
[1758781997169,0.3901668,4020.4,4020.3,0.002]
[1758781997529,7.45870876,4020.4,4020.3,0.002]
[1758781997760,0.3901668,4020.4,4020.3,0.002]
[1758781998365,0.41508395,4020.4,4020.3,0.002]
[1758781998752,2.90239864,4020.4,4020.3,0.002]
[1758781999252,0.41508395,4020.4,4020.3,0.002]
[1758781999574,2.90239864,4020.4,4020.3,0.002]
[1758781999770,3.60689864,4020.4,4020.3,0.002]
[1758782000072,6.60689864,4020.4,4020.3,0.002]
[1758782000267,6.58198149,4020.4,4020.3,0.002]
[1758782000676,6.10708149,4020.4,4020.3,0.002]
[1758782000840,12.24048149,4020.4,4020.3,0.002]
[1758782002177,12.94498149,4020.4,4020.3,0.002]
[1758782002384,13.73698149,4020.4,4020.3,0.002]
[1758782006579,6.27956218,4020.0,4019.9,1e-08]
[1758782006779,10.56956218,4020.0,4019.9,1e-08]
[1758782006930,6.27956218,4020.0,4019.9,1e-08]
[1758782007270,12.64256218,4020.0,4019.9,1e-08]
[1758782007477,13.34706218,4020.0,4019.9,1e-08]
[1758782008145,3.27974784,4019.7,4019.6,0.002]
[1758782008477,7.59466499,4019.7,4019.6,0.002]
[1758782008632,7.56974784,4019.7,4019.6,0.002]
[1758782008973,7.9600356,4019.7,4019.6,0.002]
[1758782009687,8.6645356,4019.7,4019.6,0.002]
[1758782010768,7.9600356,4019.7,4019.6,0.002]
[1758782010972,8.27424784,4019.7,4019.6,0.002]
[1758782011981,13.89724784,4019.7,4019.6,0.002]
[1758782012745,13.89724784,4019.7,4019.4,0.002]
[1758782012746,5.90287162,4019.5,4019.4,0.002]
[1758782012977,6.28005732,4019.2,4018.7,0.002]
[1758782013177,48.10979278,4019.2,4018.7,0.002]
[1758782013401,50.18379278,4019.2,4018.7,0.002]
[1758782013683,50.41339278,4019.2,4018.7,0.002]
[1758782014182,51.27862358,4019.2,4018.7,0.002]
[1758782015793,6.67038812,4019.2,4018.7,0.002]
[1758782015948,51.27862358,4019.2,4018.7,0.002]
[1758782016690,50.80372358,4019.2,4018.7,0.002]
[1758782017611,51.27862358,4019.2,4018.7,0.002]
[1758782020503,53.90162358,4019.2,4018.7,0.002]
[1758782020709,5.11130496,4018.8,4018.7,0.002]
[1758782021002,21.81677116,4018.8,4018.7,0.002]
[1758782021303,22.53347116,4018.8,4018.7,0.002]
[1758782021798,22.06207116,4018.8,4018.7,0.002]
[1758782022004,19.98577116,4018.8,4018.7,0.002]
[1758782022989,19.19377116,4018.8,4018.7,0.002]
[1758782023170,19.19377116,4018.8,4018.7,0.2289]
[1758782023378,19.19377116,4018.8,4018.7,0.002]
[1758782023580,19.58413785,4018.8,4018.7,0.002]
[1758782024183,19.58413785,4018.8,4018.7,0.6918]
[1758782024387,4.67936669,4018.8,4018.7,0.6918]
[1758782024793,0.39036669,4018.8,4018.7,3.18016688]
[1758782026630,4.289,4019.3,4019.2,2.48805732]
[1758782026783,0.001,4019.7,4019.6,2.48780203]
[1758782027137,4.29,4019.7,4019.6,3.17760203]
[1758782027292,4.68025808,4019.7,4019.6,0.6898]
[1758782027795,4.68025808,4019.7,4019.2,0.4629]
[1758782027993,4.68025808,4019.7,4018.7,0.002]
[1758782027994,3.02491715,4019.6,4018.8,0.2269]
[1758782028197,4.289,4019.5,4018.8,0.2269]
[1758782028395,0.02491715,4019.4,4018.9,0.4629]
[1758782028600,6.77600329,4019.3,4019.0,0.2269]
[1758782028799,0.02491715,4019.2,4018.7,0.002]
[1758782028996,4.288,4019.1,4018.7,0.002]
[1758782029220,0.02491715,4019.0,4018.8,0.2269]
[1758782029439,0.02491715,4019.0,4018.8,0.4629]
[1758782029598,0.02491715,4019.0,4018.9,0.2269]
[1758782029779,4.67831306,4019.1,4018.9,0.2269]
[1758782030223,4.67831306,4019.1,4018.9,0.4629]
[1758782030387,4.67831306,4019.1,4018.7,0.002]
[1758782030588,4.288,4019.1,4018.7,0.002]
[1758782030791,4.288,4019.1,4018.8,0.2269]
[1758782031618,4.288,4019.1,4018.7,0.002]
[1758782031813,2.48830496,4018.8,4018.7,0.002]
[1758782032117,6.77630496,4018.8,4018.7,0.002]
[1758782034106,4.288,4018.8,4018.7,0.002]
[1758782034590,6.80122211,4018.8,4018.7,0.002]
[1758782034803,6.77630496,4018.8,4018.7,0.002]
[1758782035010,7.16666231,4018.8,4018.7,0.002]
[1758782035806,7.88336231,4018.8,4018.7,0.002]
[1758782036011,11.67536231,4018.8,4018.7,0.002]
[1758782038932,3.39035735,4018.8,4018.7,0.002]
[1758782039132,7.67735735,4018.8,4018.7,0.002]
[1758782039335,7.67735735,4018.8,4018.7,0.2289]
[1758782039739,10.16566231,4018.8,4018.7,0.002]
[1758782040041,7.67735735,4018.8,4018.7,0.2289]
[1758782040208,10.16566231,4018.8,4018.7,0.2289]
[1758782040403,7.67735735,4018.8,4018.7,0.2289]
[1758782040641,0.2269,4020.5,4018.7,0.2289]
[1758782040642,0.001,4019.7,4018.7,0.6918]
[1758782040947,2.48824485,4018.9,4018.7,0.002]
[1758782041127,0.02491715,4018.8,4018.7,0.002]
[1758782041512,4.287,4018.9,4018.7,0.6795]
[1758782042109,6.77526447,4018.9,4018.7,0.6795]
[1758782042608,3.18452211,4018.8,4018.7,0.002]
[1758782042836,4.287,4018.9,4018.7,0.002]
[1758782043036,0.2332,4019.6,4018.7,0.6795]
[1758782043240,3.0,4019.2,4018.7,0.6795]
[1758782043434,4.287,4019.1,4018.8,0.6775]
[1758782043642,4.287,4019.0,4018.9,0.6775]
[1758782044506,6.77518113,4019.0,4018.7,0.002]
[1758782044709,2.51322099,4018.9,4018.7,0.002]
[1758782044914,0.02491715,4018.9,4018.7,0.002]
[1758782045114,2.48830496,4018.8,4018.7,0.002]
[1758782045314,7.44560496,4018.8,4018.7,0.002]
[1758782045538,13.31160496,4018.8,4018.7,0.002]
[1758782047069,15.93460496,4018.8,4018.7,0.002]
[1758782048482,6.415,4018.7,4016.1,0.4484]
[1758782048784,6.415,4018.7,4016.1,0.02]
[1758782048785,2.48991584,4016.2,4016.1,0.02]
[1758782048943,44.31946957,4016.2,4016.1,0.02]
[1758782049144,47.29455242,4016.2,4016.1,0.02]
[1758782049452,2.49053596,4015.2,4014.9,0.002]
[1758782049648,47.32008969,4015.2,4014.9,0.002]
[1758782049840,50.5214811,4015.2,4014.9,0.002]
[1758782050158,50.9595811,4015.2,4014.9,0.002]
[1758782050359,44.5995811,4015.2,4014.9,0.002]
[1758782050568,5.46476302,4015.2,4014.9,0.002]
[1758782050780,3.0,4015.2,4015.1,0.7384]
[1758782051079,4.286,4015.2,4015.1,0.7384]
[1758782051493,0.02491715,4015.4,4015.1,0.7384]
[1758782051693,0.2325,4016.8,4015.2,0.7184]
[1758782051832,0.4487,4016.9,4015.2,0.7184]
[1758782051833,0.02491715,4016.7,4015.2,0.7184]
[1758782052033,2.48971834,4016.6,4015.3,3.53176969]
[1758782052330,4.287,4016.5,4015.4,0.74330411]
[1758782052644,4.287,4016.5,4016.4,2.48979185]
[1758782052834,4.287,4016.5,4016.4,3.20819185]
[1758782053035,4.287,4016.5,4016.4,0.7184]
[1758782053736,37.51863658,4017.4,4016.4,0.7184]
[1758782054060,5.48934644,4017.2,4016.4,0.7184]
[1758782054235,3.0,4017.2,4016.4,0.7184]
[1758782054960,4.67754963,4017.1,4016.5,0.2454]
[1758782055165,4.287,4017.0,4016.5,0.2454]
[1758782055369,2.48948631,4016.9,4016.5,0.2454]
[1758782055548,0.02491715,4016.8,4016.6,0.7184]
[1758782055885,0.02491715,4016.8,4015.3,0.32289815]
[1758782056095,0.02491715,4016.8,4016.1,0.2454]
[1758782056299,3.777,4016.7,4016.1,0.2454]
[1758782056593,0.02491715,4016.6,4016.1,0.2454]
[1758782056801,2.51459969,4016.6,4016.2,0.2454]
[1758782057481,0.02491715,4016.6,4016.1,2.48997539]
[1758782057678,0.02491715,4016.6,4016.3,0.2454]
[1758782058154,4.16755369,4016.7,4016.4,0.2454]
[1758782058352,0.02491715,4016.6,4016.0,0.2454]
[1758782058563,2.48972986,4016.5,4014.4,2.49098772]
[1758782058769,4.31191715,4016.4,4015.6,0.7184]
[1758782058988,2.48937919,4017.1,4015.7,0.74330225]
[1758782059189,0.39057756,4016.3,4016.2,2.48986633]
[1758782059382,0.39057756,4016.3,4016.2,3.20826633]
[1758782059579,1.097,4017.3,4017.2,2.48927743]
[1758782059868,1.097,4017.3,4017.2,3.20767743]
[1758782060077,1.097,4017.3,4017.2,0.7184]
[1758782060264,1.097,4017.3,4016.9,2.489456]
[1758782060465,1.097,4017.3,4016.9,3.20785704]
[1758782060880,1.097,4017.3,4016.9,2.96245704]
[1758782061209,1.097,4017.3,4017.0,0.2454]
[1758782061718,1.097,4017.3,4016.9,2.48945704]
[1758782062006,0.02491715,4017.2,4016.2,0.81772066]
[1758782062178,0.02491715,4017.2,4016.3,0.12907207]
[1758782062502,0.02491715,4017.2,4016.6,2.4896553]
[1758782063306,0.001,4017.1,4016.6,2.4896553]
[1758782063610,0.001,4017.1,4016.6,0.2454]
[1758782063906,0.39050648,4017.0,4016.6,0.2454]
[1758782064075,0.02491715,4016.9,4016.6,2.73506283]
[1758782065904,0.02491715,4016.9,4016.7,2.48959254]
[1758782067032,0.47361715,4016.9,4016.0,0.002]
[1758782067235,4.5185,4016.8,4016.0,0.002]
[1758782067395,0.02491715,4016.7,4016.0,0.002]
[1758782067595,0.02491715,4016.7,4016.1,2.48997783]
[1758782068030,0.02491715,4016.7,4016.2,2.48990303]
[1758782068234,0.39050648,4017.0,4016.9,2.48948193]
[1758782068546,0.39050648,4017.0,4016.9,3.23277674]
[1758782068700,0.39050648,4017.0,4016.9,3.74728322]
[1758782069039,0.39050648,4017.0,4016.9,3.72238841]
[1758782069539,0.001,4017.6,4017.5,2.48911014]
[1758782069701,0.001,4017.6,4017.5,6.77511014]
[1758782069901,0.001,4017.6,4017.5,7.49351014]
[1758782070636,0.001,4018.0,4017.9,2.48886234]
[1758782070802,0.001,4018.0,4017.9,6.30575096]
[1758782071000,0.001,4018.0,4017.9,8.07457198]
[1758782071230,0.001,4018.0,4017.9,4.28257198]
[1758782071394,0.001,4018.0,4017.9,3.44017198]
[1758782071597,0.001,4018.0,4017.9,0.95130964]
[1758782071810,0.001,4018.0,4017.7,6.7749761]
[1758782072035,0.001,4018.0,4017.8,2.4888668]
[1758782072336,0.001,4018.0,4017.9,2.48886234]
[1758782072744,0.001,4018.0,4017.9,3.23215096]
[1758782072904,0.001,4018.0,4017.9,3.33126234]
[1758782073105,0.001,4018.0,4017.9,1.85302091]
[1758782073400,0.001,4018.0,4017.9,4.21788325]
[1758782075925,0.001,4018.0,4017.9,3.74488325]
[1758782076123,0.001,4018.0,4017.9,3.49948325]
[1758782076746,0.001,4018.0,4017.9,5.00988325]
[1758782076944,0.001,4018.0,4017.9,5.13388325]
[1758782077163,0.001,4019.1,4018.7,0.792]
[1758782077378,0.001,4019.1,4019.0,2.61218113]
[1758782077549,0.001,4019.1,4019.0,5.63706294]
[1758782077754,0.001,4019.1,4019.0,6.33058113]
[1758782078340,0.001,4019.1,4019.0,7.22234805]
[1758782080145,1e-08,4019.7,4019.6,2.48780973]
[1758782080346,1e-08,4019.7,4019.6,12.8865907]
[1758782080540,1e-08,4019.7,4019.6,13.7289907]
[1758782080736,1e-08,4019.7,4019.6,13.82873647]
[1758782081188,1e-08,4019.9,4019.8,3.27968595]
[1758782081497,1e-08,4019.9,4019.8,6.3045628]
[1758782081798,1e-08,4019.9,4019.8,8.58524588]
[1758782082203,1e-08,4019.9,4019.8,8.70924588]
[1758782083070,0.001,4021.3,4020.8,2.48706725]
[1758782083271,0.001,4021.3,4021.2,2.48681985]
[1758782083491,0.001,4021.3,4021.2,9.91868804]
[1758782083688,0.001,4021.3,4021.2,11.70935301]
[1758782083890,0.001,4021.3,4021.2,12.48476671]
[1758782084572,0.001,4021.3,4021.2,11.80906671]
[1758782085605,0.001,4021.3,4021.2,13.88106671]
[1758782086802,0.6881,4021.3,4021.2,6.86853355]
[1758782087014,0.001,4021.3,4021.2,6.86853355]
[1758782087507,0.001,4021.3,4021.2,6.76881985]
[1758782089286,0.6881,4021.3,4021.2,6.76881985]
[1758782089494,0.6881,4021.3,4021.2,4.282]
[1758782089675,0.6881,4021.3,4021.2,6.76881985]
[1758782090786,0.6881,4021.3,4021.2,4.282]
[1758782091016,0.6881,4021.3,4020.7,0.8121]
[1758782091199,0.2337,4021.2,4021.0,2.48691279]
[1758782091505,0.6871,4021.1,4021.0,2.48691279]
[1758782091716,0.6871,4021.1,4021.0,6.76791279]
[1758782092470,0.6871,4021.1,4021.0,4.281]
[1758782092705,0.6871,4021.1,4020.4,3.0]
[1758782092904,0.6871,4021.1,4020.6,2.48717531]
[1758782093105,0.001,4021.3,4020.9,2.48698189]
[1758782093301,0.6871,4021.0,4020.9,2.48698189]
[1758782093508,0.6871,4021.0,4020.9,6.76698189]
[1758782093906,0.6871,4021.0,4020.9,4.28]
[1758782094129,0.4534,4021.0,4020.9,4.28]
[1758782094291,0.6871,4021.0,4020.9,4.28]
[1758782095307,0.2337,4021.0,4020.4,0.01899999]
[1758782095499,0.6871,4021.0,4020.5,4.28]
[1758782095694,0.6871,4020.9,4020.5,4.28]
[1758782096008,0.39011535,4021.1,4020.5,4.28]
[1758782096009,0.71201715,4020.8,4020.5,4.28]
[1758782096216,0.6871,4020.7,4020.5,4.28]
[1758782096419,0.6871,4020.6,4020.5,4.28]
[1758782096602,0.6871,4020.6,4020.4,2.48728718]
[1758782096802,0.4534,4020.6,4020.5,4.28]
[1758782097324,0.6871,4020.6,4020.5,4.28]
[1758782098621,0.2337,4020.6,4020.5,4.28]
[1758782098832,0.39011535,4021.1,4021.0,2.48694354]
[1758782098994,0.39011535,4021.1,4021.0,6.76694354]
[1758782099194,0.39011535,4021.1,4021.0,4.28]
[1758782099633,0.39011535,4021.1,4021.0,6.76694354]
[1758782100349,0.001,4021.7,4021.2,2.48681985]
[1758782100496,0.001,4021.7,4021.2,7.71706438]
[1758782100691,0.001,4021.7,4021.2,8.36789619]
[1758782101704,0.001,4021.7,4021.2,6.76681985]
[1758782101918,0.001,4021.7,4021.2,6.99581985]
[1758782102121,0.001,4021.7,4021.2,7.44571985]
[1758782103221,0.021,4021.9,4021.8,2.48644885]
[1758782103415,0.021,4021.9,4021.8,8.83844885]
[1758782103632,0.021,4021.9,4021.8,10.77384689]
[1758782104344,0.021,4021.9,4021.8,10.09494689]
[1758782104835,0.021,4021.9,4021.8,2.61044885]
[1758782105041,0.021,4021.9,4021.8,6.76544885]
[1758782105209,0.021,4021.9,4021.8,2.48644885]
[1758782105404,0.6927,4021.9,4021.8,6.76544885]
[1758782105835,0.2591,4021.9,4021.8,6.76544885]
[1758782106134,0.021,4021.9,4021.8,6.76544885]
[1758782107041,0.021,4021.9,4021.8,7.70305081]
[1758782107240,0.021,4021.9,4021.8,8.38195081]
[1758782107546,0.021,4021.9,4021.8,8.50595081]
[1758782109015,0.021,4021.9,4021.8,2.48644885]
[1758782109210,0.6927,4021.9,4021.3,0.124]
[1758782109440,0.6927,4021.9,4021.4,4.278]
[1758782109739,0.6717,4021.8,4021.4,4.278]
[1758782109911,0.6717,4021.7,4021.4,6.76469376]
[1758782110112,0.2381,4021.6,4021.5,2.48663434]
[1758782111136,0.2381,4021.6,4020.9,0.002]
[1758782111137,0.6749,4021.6,4020.9,0.002]
[1758782111629,2.48693254,4021.1,4020.9,0.002]
[1758782111832,2.76055394,4021.0,4020.9,0.002]
[1758782112032,3.18636069,4021.0,4020.9,0.002]
[1758782112347,0.6745,4021.0,4020.9,0.002]
[1758782112644,6.18636069,4021.0,4020.9,0.002]
[1758782112823,6.16144354,4021.0,4020.9,0.002]
[1758782113026,0.4368,4021.4,4020.9,0.002]
[1758782113344,0.2377,4021.3,4020.9,0.002]
[1758782113547,1.06461348,4021.3,4020.9,0.002]
[1758782113858,0.6745,4021.2,4020.9,0.002]
[1758782114148,3.16133419,4021.2,4020.9,0.002]
[1758782114312,0.4368,4021.1,4020.9,0.002]
[1758782114676,0.6745,4021.1,4020.9,0.002]
[1758782114811,0.2377,4021.1,4020.9,2.48896268]
[1758782115014,0.2377,4021.1,4021.0,2.48694354]
[1758782115340,0.4368,4021.5,4020.9,0.002]
[1758782115523,0.2377,4021.1,4021.0,5.66092236]
[1758782115730,0.39008872,4021.5,4021.4,2.48669617]
[1758782115917,1.06458872,4021.5,4021.4,2.48669617]
[1758782116122,0.62778872,4021.5,4021.4,2.48669617]
[1758782116448,0.39008872,4021.5,4021.4,2.48669617]
[1758782117247,0.39008872,4021.5,4020.9,2.48896193]
[1758782117248,0.39008872,4021.5,4020.9,0.002]
[1758782117422,1.06458872,4021.5,4020.9,4.28]
[1758782117810,1.06458872,4021.5,4021.1,2.4868686]
[1758782118313,0.2377,4021.4,4021.1,2.4868686]
[1758782118743,0.6745,4021.3,4020.9,4.28]
[1758782118938,0.6745,4021.2,4020.9,4.28]
[1758782119176,0.2377,4021.1,4020.9,4.28]
[1758782119376,2.87672837,4021.5,4020.9,4.28]
[1758782119675,0.6745,4021.0,4020.9,4.28]
[1758782120269,0.2377,4021.0,4020.9,6.76700539]
[1758782120470,0.4368,4021.4,4021.0,2.48693612]
[1758782120639,0.6745,4021.3,4021.0,2.48693612]
[1758782120845,0.2377,4021.2,4021.0,2.48693612]
[1758782121160,0.6745,4021.2,4020.9,6.76700313]
[1758782121542,2.48694354,4021.0,4020.9,0.002]
[1758782121746,0.69941715,4021.1,4020.9,0.002]
[1758782121939,0.2377,4021.0,4020.9,0.002]
[1758782122254,3.16144354,4021.0,4020.9,0.002]
[1758782122579,6.97836069,4021.0,4020.9,0.002]
[1758782122782,6.97836069,4021.0,4020.4,0.002]
[1758782122783,5.48721006,4020.6,4020.4,0.002]
[1758782122944,3.0,4020.7,4020.4,0.002]
[1758782123148,6.16175282,4020.5,4020.4,0.002]
[1758782123585,6.55195139,4020.5,4020.4,0.002]
[1758782124276,4.06469857,4020.5,4020.4,0.002]
[1758782125147,6.55195139,4020.5,4020.4,0.002]
[1758782125657,4.06469857,4020.5,4020.4,0.002]
[1758782125861,3.62789857,4020.5,4020.4,0.002]
[1758782126060,4.06469857,4020.5,4020.4,0.002]
[1758782126296,0.39019857,4020.5,4020.4,0.002]
[1758782126499,0.39019857,4020.5,4020.4,2.71671469]
[1758782126693,0.39019857,4020.5,4020.4,2.48931469]
[1758782127808,0.39019857,4020.5,4020.4,0.002]
[1758782128177,0.39019857,4020.5,4020.4,2.48931469]
[1758782130200,3.0,4021.2,4020.6,2.48715579]
[1758782130614,3.0,4021.2,4020.5,2.48723978]
[1758782130911,5.48682216,4021.2,4020.5,2.48723978]
[1758782131414,3.0,4021.2,4020.5,2.48723978]
[1758782131917,3.0,4021.0,4020.4,0.002]
[1758782132079,0.02491715,4020.9,4020.4,0.002]
[1758782132278,0.69941715,4020.9,4020.4,0.002]
[1758782132476,0.4368,4020.8,4020.4,0.002]
[1758782132711,0.02491715,4020.7,4020.4,2.48930428]
[1758782133015,0.69941715,4020.7,4020.4,2.48930428]
[1758782133215,0.2377,4020.6,4020.4,2.48930428]
[1758782133614,0.2377,4020.6,4020.4,0.002]
[1758782133789,0.02491715,4020.5,4020.4,0.002]
[1758782134121,0.26261715,4020.6,4020.4,0.002]
[1758782134602,0.26261715,4020.6,4020.4,2.48930763]
[1758782134803,0.2377,4020.6,4020.5,2.48725282]
[1758782135207,0.2377,4020.6,4020.4,2.48929895]
[1758782135530,0.2377,4020.6,4020.5,2.48725282]
[1758782135734,0.2377,4020.6,4020.4,0.002]
[1758782136018,0.69941715,4020.6,4020.4,0.002]
[1758782136405,0.26261715,4020.6,4020.4,0.002]
[1758782136718,0.39015284,4020.7,4020.6,2.48719096]
[1758782139732,0.39015284,4020.7,4020.6,2.51206286]
[1758782139918,0.39015284,4020.7,4020.6,3.28664443]
[1758782140600,0.39015284,4020.7,4020.6,3.05924443]
[1758782141909,0.001,4021.8,4021.7,2.48651067]
[1758782142815,0.001,4021.8,4021.7,3.16001067]
[1758782143054,0.001,4021.8,4021.7,4.15247068]
[1758782143349,0.001,4021.8,4021.7,3.50383578]
[1758782145508,0.001,4021.8,4021.7,4.17733578]
[1758782146021,0.001,4021.8,4021.7,8.45433578]
[1758782146220,0.001,4021.8,4021.7,7.75597068]
[1758782146411,0.001,4021.8,4021.7,8.42947068]
[1758782147244,0.001,4021.8,4021.7,7.75597068]
[1758782147453,0.001,4021.8,4021.7,6.76351067]
[1758782147613,0.74701715,4021.8,4020.6,2.48719096]
[1758782147813,0.2477,4021.7,4021.6,2.4865725]
[1758782148236,0.63775206,4021.7,4021.6,2.4865725]
[1758782148750,1.11115206,4021.7,4021.6,2.4865725]
[1758782150065,0.2477,4021.6,4021.5,2.48663434]
[1758782150415,0.7211,4021.6,4020.0,0.24999999]
[1758782150615,0.74601715,4021.6,4020.5,1.062]
[1758782150816,4.277,4021.8,4020.6,0.6983719]
[1758782151022,4.277,4021.8,4021.4,2.48664432]
[1758782151253,4.5247,4021.8,4021.5,2.48662133]
[1758782151846,0.001,4021.8,4021.7,2.48651067]
[1758782152363,0.001,4021.8,4021.7,3.16001067]
[1758782152539,0.001,4021.8,4021.7,4.15475739]
[1758782152925,0.001,4021.8,4021.7,3.71025739]
[1758782153143,0.001,4021.8,4021.7,3.48125739]
[1758782153473,0.7221,4021.8,4021.4,4.276]
[1758782153651,0.2487,4021.8,4021.7,2.48651067]
[1758782153952,0.001,4021.8,4021.7,2.48651067]
[1758782154117,0.001,4021.8,4021.7,2.51137577]
[1758782154653,0.001,4021.8,4021.7,5.51137577]
[1758782154829,0.001,4021.8,4021.7,4.38741168]
[1758782155031,0.001,4021.8,4021.7,4.41227678]
[1758782155355,0.001,4021.8,4021.7,8.68727678]
[1758782155655,0.001,4021.8,4021.7,8.66241168]
[1758782156668,0.001,4021.8,4021.7,11.66241168]
[1758782157557,0.001,4021.8,4021.7,11.78641168]
[1758782157939,0.001,4021.8,4021.7,1.35140101]
[1758782158144,0.7221,4021.8,4021.1,2.476]
[1758782158378,0.7211,4021.7,4021.1,2.476]
[1758782158562,0.74601715,4021.6,4021.1,2.476]
[1758782158872,2.48673202,4021.4,4020.9,4.277]
[1758782159174,0.74601715,4021.3,4020.9,4.277]
[1758782159578,2.51169149,4021.3,4020.9,4.277]
[1758782159746,0.7211,4021.2,4020.9,0.002]
[1758782160097,0.02491715,4021.1,4020.9,0.002]
[1758782160276,0.49831715,4021.1,4020.9,0.002]
[1758782160452,0.7211,4021.0,4020.9,0.002]
[1758782164010,3.0,4021.4,4020.9,2.48900539]
[1758782164211,4.9745,4021.7,4021.1,2.48687887]
[1758782164509,3.0,4021.6,4021.1,2.48687887]
[1758782165127,2.48694354,4021.0,4020.9,0.002]
[1758782165274,49.32688058,4021.0,4020.9,0.002]
[1758782165470,51.20857551,4021.0,4020.9,0.002]
[1758782165677,2.48725282,4020.5,4020.4,0.002]
[1758782166011,43.79610701,4020.5,4020.4,0.002]
[1758782166216,2.48750031,4020.1,4019.1,0.02]
[1758782166421,42.0773545,4020.1,4019.1,0.02]
[1758782166712,42.75193735,4020.1,4019.1,0.02]
[1758782166919,43.1422103,4020.1,4019.1,0.02]
[1758782168690,47.4172103,4020.1,4019.1,0.02]
[1758782169790,51.2092103,4020.1,4019.1,0.02]
[1758782170694,50.81893735,4020.1,4019.1,0.02]
[1758782171430,3.27980973,4019.6,4019.1,0.02]
[1758782171730,45.07166392,4019.6,4019.1,0.02]
[1758782171932,45.75314677,4019.6,4019.1,0.02]
[1758782172935,48.75314677,4019.6,4019.1,0.02]
[1758782173135,6.28005732,4019.2,4019.1,0.02]
[1758782173326,50.12099436,4019.2,4019.1,0.02]
[1758782173521,50.82739436,4019.2,4019.1,0.022]
[1758782173836,51.21777328,4019.2,4019.1,0.022]
[1758782175939,44.86877328,4019.2,4019.1,0.022]
[1758782176140,51.21877328,4019.2,4019.1,0.022]
[1758782177642,2.48867652,4018.2,4018.1,0.02]
[1758782177937,50.14753071,4018.2,4018.1,0.02]
[1758782178140,50.82901356,4018.2,4018.1,0.02]
[1758782178438,51.21948868,4018.2,4018.1,0.02]
[1758782179367,6.28104818,4017.6,4017.5,0.002]
[1758782179522,48.04898522,4017.6,4017.5,0.002]
[1758782179727,48.75538522,4017.6,4017.5,0.002]
[1758782180127,49.1459215,4017.6,4017.5,0.002]
[1758782180533,0.02,4020.9,4017.5,42.09023704]
[1758782180842,0.02,4020.9,4020.0,2.48750572]
[1758782181032,0.02,4020.9,4020.1,0.85623176]
[1758782181227,0.02,4020.9,4019.6,0.02487809]
[1758782181228,4.346,4020.8,4019.6,0.02487809]
[1758782181458,4.7827,4020.8,4019.7,0.605]
[1758782181727,4.7827,4020.8,4019.7,0.4343]
[1758782181728,0.02,4019.9,4019.7,0.4343]
[1758782181935,0.02,4019.9,4019.8,0.605]
[1758782182568,0.02,4019.9,4019.8,3.09268595]
[1758782184765,0.02,4019.9,4019.3,0.4343]
[1758782184969,4.37091715,4019.8,4019.3,2.92229136]
[1758782185270,4.346,4019.8,4019.4,0.605]
[1758782185434,4.346,4019.8,4019.5,0.605]
[1758782185626,4.346,4019.8,4019.6,0.4343]